[Event "*** SCC Grand Prix: Titled Tuesday Blitz"]
[Site "Chess.com"]
[Date "2020.06.23"]
[Round "10"]
[White "Kapitan_Bayan"]
[Black "Gurvich_Vitaly"]
[Result "1-0"]
[WhiteElo "2468"]
[BlackElo "2548"]
[TimeControl "180+1"]
[EndTime "11:58:51 PDT"]
[Termination "Kapitan_Bayan won on time"]

1. d4 {[%clk 0:03:00.9]} 1... Nf6 {[%clk 0:02:43.3]} 2. Nf3 {[%clk 0:03:01]}
2... g6 {[%clk 0:02:42]} 3. Bg5 {[%clk 0:03:01.2]} 3... Bg7 {[%clk 0:02:42.1]}
4. Nbd2 {[%clk 0:03:01.1]} 4... c5 {[%clk 0:02:41.7]} 5. e3 {[%clk 0:02:58.1]}
5... cxd4 {[%clk 0:02:40.9]} 6. exd4 {[%clk 0:02:58.1]} 6... O-O {[%clk
0:02:41.8]} 7. c3 {[%clk 0:02:56.7]} 7... d5 {[%clk 0:02:41.8]} 8. Bd3 {[%clk
0:02:54.5]} 8... Nc6 {[%clk 0:02:42.3]} 9. O-O {[%clk 0:02:53.3]} 9... Qc7
{[%clk 0:02:39.9]} 10. Re1 {[%clk 0:02:52.9]} 10... Nh5 {[%clk 0:02:38.4]} 11.
a4 {[%clk 0:02:32.3]} 11... Nf4 {[%clk 0:02:34.6]} 12. Bf1 {[%clk 0:02:29]}
12... f6 {[%clk 0:02:34.3]} 13. Bh4 {[%clk 0:02:26.9]} 13... e5 {[%clk
0:02:34.1]} 14. dxe5 {[%clk 0:02:10.9]} 14... fxe5 {[%clk 0:02:35]} 15. Nb3
{[%clk 0:02:07.7]} 15... Bg4 {[%clk 0:02:31.6]} 16. Bg3 {[%clk 0:01:57]} 16...
Rad8 {[%clk 0:02:30.6]} 17. Bxf4 {[%clk 0:01:42.2]} 17... Rxf4 {[%clk
0:02:28.9]} 18. Be2 {[%clk 0:01:42.3]} 18... Qd6 {[%clk 0:01:22.2]} 19. Nfd2
{[%clk 0:01:23.6]} 19... Be6 {[%clk 0:01:20.1]} 20. a5 {[%clk 0:01:06.1]} 20...
a6 {[%clk 0:01:19]} 21. Nf1 {[%clk 0:00:47.3]} 21... Rdf8 {[%clk 0:01:17.5]} 22.
f3 {[%clk 0:00:37.8]} 22... d4 {[%clk 0:01:13.7]} 23. Nc1 {[%clk 0:00:32.3]}
23... Rd8 {[%clk 0:01:03.4]} 24. Nd3 {[%clk 0:00:29.2]} 24... Rff8 {[%clk
0:01:03.9]} 25. Nf2 {[%clk 0:00:23.8]} 25... Bd5 {[%clk 0:00:45.9]} 26. Ng3
{[%clk 0:00:21.3]} 26... Bh6 {[%clk 0:00:43.9]} 27. Nfe4 {[%clk 0:00:20]} 27...
Be3+ {[%clk 0:00:42.9]} 28. Kh1 {[%clk 0:00:20]} 28... Qe7 {[%clk 0:00:43.1]}
29. Bd3 {[%clk 0:00:14.8]} 29... Rf4 {[%clk 0:00:41.9]} 30. Nf1 {[%clk
0:00:11.9]} 30... Bxe4 {[%clk 0:00:36.7]} 31. Bxe4 {[%clk 0:00:09.4]} 31... Kg7
{[%clk 0:00:20.2]} 32. Nxe3 {[%clk 0:00:09]} 32... dxe3 {[%clk 0:00:21.1]} 33.
Qe2 {[%clk 0:00:06.8]} 33... Rd2 {[%clk 0:00:17.7]} 34. Qxe3 {[%clk 0:00:04.9]}
34... Rxb2 {[%clk 0:00:18.1]} 35. Bxc6 {[%clk 0:00:05.1]} 35... bxc6 {[%clk
0:00:18.4]} 36. Qxe5+ {[%clk 0:00:05.3]} 36... Qxe5 {[%clk 0:00:19.3]} 37. Rxe5
{[%clk 0:00:05.8]} 37... Rc4 {[%clk 0:00:19.7]} 38. Re3 {[%clk 0:00:05.5]} 38...
Rc5 {[%clk 0:00:19.1]} 39. h4 {[%clk 0:00:05.1]} 39... Rc2 {[%clk 0:00:17.1]}
40. Ra3 {[%clk 0:00:04.1]} 40... Rd5 {[%clk 0:00:16.2]} 41. Kh2 {[%clk
0:00:04.2]} 41... Rdd2 {[%clk 0:00:16]} 42. Re7+ {[%clk 0:00:03.9]} 42... Kf6
{[%clk 0:00:12.5]} 43. Rc7 {[%clk 0:00:03.8]} 43... Rxg2+ {[%clk 0:00:12.4]} 44.
Kh3 {[%clk 0:00:03.2]} 44... Rh2+ {[%clk 0:00:12.7]} 45. Kg3 {[%clk 0:00:03.5]}
45... Rcg2+ {[%clk 0:00:13.2]} 46. Kf4 {[%clk 0:00:03.3]} 46... Rxh4+ {[%clk
0:00:13.6]} 47. Ke3 {[%clk 0:00:03.8]} 47... Rc4 {[%clk 0:00:13.6]} 48. Kd3
{[%clk 0:00:03.4]} 48... Rc5 {[%clk 0:00:13.9]} 49. Kd4 {[%clk 0:00:03.6]} 49...
Rgg5 {[%clk 0:00:13.8]} 50. f4 {[%clk 0:00:03.3]} 50... Rgd5+ {[%clk 0:00:13.6]}
51. Ke4 {[%clk 0:00:04.2]} 51... Rc4+ {[%clk 0:00:14.1]} 52. Kf3 {[%clk
0:00:03.3]} 52... h5 {[%clk 0:00:14.4]} 53. Ra7 {[%clk 0:00:01.9]} 53... Rf5
{[%clk 0:00:12.3]} 54. Rxa6 {[%clk 0:00:01.6]} 54... Rfxf4+ {[%clk 0:00:13.2]}
55. Ke3 {[%clk 0:00:01.8]} 55... g5 {[%clk 0:00:13]} 56. Rb6 {[%clk 0:00:02.3]}
56... Rfe4+ {[%clk 0:00:12.2]} 57. Kd3 {[%clk 0:00:02.1]} 57... Rh4 {[%clk
0:00:05]} 58. a6 {[%clk 0:00:02]} 58... Rcg4 {[%clk 0:00:04.9]} 59. a7 {[%clk
0:00:01.1]} 59... Rg3+ {[%clk 0:00:04.4]} 60. Kc2 {[%clk 0:00:01.5]} 60... Rh2+
{[%clk 0:00:04.4]} 61. Kb3 {[%clk 0:00:01.9]} 61... Rg1 {[%clk 0:00:04.4]} 62.
Rxc6+ {[%clk 0:00:01.9]} 62... Kf5 {[%clk 0:00:04]} 63. a8=Q {[%clk 0:00:02.8]}
63... Rb1+ {[%clk 0:00:04.1]} 64. Ka4 {[%clk 0:00:03.5]} 64... Rh4+ {[%clk
0:00:03.4]} 65. Ka5 {[%clk 0:00:03]} 65... Re4 {[%clk 0:00:04.3]} 66. Qc8+
{[%clk 0:00:03.1]} 66... Kf4 {[%clk 0:00:04]} 67. Rc5 {[%clk 0:00:04]} 67... Ke3
{[%clk 0:00:04.6]} 68. Rc4 {[%clk 0:00:04.1]} 68... Re5+ {[%clk 0:00:04]} 69.
Rc5 {[%clk 0:00:04.2]} 69... Re4 {[%clk 0:00:04.5]} 70. Qc6 {[%clk 0:00:04.5]}
70... Rb8 {[%clk 0:00:02.8]} 71. c4+ {[%clk 0:00:05.4]} 71... Kf2 {[%clk
0:00:01.1]} 72. Rb5 {[%clk 0:00:06.2]} 1-0

[Event "*** SCC Grand Prix: Titled Tuesday Blitz"]
[Site "Chess.com"]
[Date "2020.06.23"]
[Round "10"]
[White "petrkostenko"]
[Black "eCztery"]
[Result "1/2-1/2"]
[WhiteElo "2526"]
[BlackElo "2390"]
[TimeControl "180+1"]
[EndTime "11:58:51 PDT"]
[Termination "Game drawn - insufficient material"]

1. e4 {[%clk 0:03:00.9]} 1... c5 {[%clk 0:02:59.6]} 2. Nf3 {[%clk 0:03:00.2]}
2... g6 {[%clk 0:02:59.2]} 3. d4 {[%clk 0:02:56.7]} 3... cxd4 {[%clk 0:03:00.1]}
4. Qxd4 {[%clk 0:02:56.9]} 4... Nf6 {[%clk 0:03:00.1]} 5. Nc3 {[%clk 0:02:57.6]}
5... Nc6 {[%clk 0:03:00]} 6. Qa4 {[%clk 0:02:58.3]} 6... d6 {[%clk 0:03:00.2]}
7. e5 {[%clk 0:02:58.6]} 7... dxe5 {[%clk 0:02:57.3]} 8. Nxe5 {[%clk 0:02:59.1]}
8... Bg7 {[%clk 0:02:55.9]} 9. Bb5 {[%clk 0:02:58.5]} 9... O-O {[%clk
0:02:52.3]} 10. Nxc6 {[%clk 0:02:58.5]} 10... bxc6 {[%clk 0:02:52.2]} 11. Bxc6
{[%clk 0:02:59]} 11... Rb8 {[%clk 0:02:49.4]} 12. O-O {[%clk 0:02:54.8]} 12...
Qb6 {[%clk 0:02:38.7]} 13. Bf3 {[%clk 0:02:16.7]} 13... Bd7 {[%clk 0:02:31.3]}
14. Qh4 {[%clk 0:02:15.8]} 14... Bc6 {[%clk 0:02:20.3]} 15. Bxc6 {[%clk
0:02:09.4]} 15... Qxc6 {[%clk 0:02:21.2]} 16. Re1 {[%clk 0:02:08]} 16... a5
{[%clk 0:01:57]} 17. a3 {[%clk 0:02:03.7]} 17... e6 {[%clk 0:01:53]} 18. Qa4
{[%clk 0:01:44.9]} 18... Qxa4 {[%clk 0:01:45]} 19. Nxa4 {[%clk 0:01:44.1]} 19...
Nd5 {[%clk 0:01:45.5]} 20. c4 {[%clk 0:01:14.1]} 20... Nb6 {[%clk 0:01:44.3]}
21. Nxb6 {[%clk 0:01:12.8]} 21... Rxb6 {[%clk 0:01:45.2]} 22. Bd2 {[%clk
0:00:55.8]} 22... Bxb2 {[%clk 0:01:39.9]} 23. Bxa5 {[%clk 0:00:53]} 23... Ra6
{[%clk 0:01:36.2]} 24. Ra2 {[%clk 0:00:52.5]} 24... Rxa5 {[%clk 0:01:16]} 25.
Rxb2 {[%clk 0:00:51.8]} 25... Rxa3 {[%clk 0:01:16.3]} 26. Rc1 {[%clk 0:00:52]}
26... Rc8 {[%clk 0:01:16.8]} 27. Kf1 {[%clk 0:00:46.4]} 27... Rc5 {[%clk
0:01:15.1]} 28. Ke2 {[%clk 0:00:44.6]} 28... Kf8 {[%clk 0:01:08.6]} 29. g3
{[%clk 0:00:39.7]} 29... Ke7 {[%clk 0:01:07.3]} 30. Rb7+ {[%clk 0:00:38.5]}
30... Kf6 {[%clk 0:01:06.4]} 31. Rc2 {[%clk 0:00:39.1]} 31... h5 {[%clk
0:01:04]} 32. h4 {[%clk 0:00:39.1]} 32... Ra4 {[%clk 0:00:58.9]} 33. Kd3 {[%clk
0:00:37.6]} 33... e5 {[%clk 0:00:58.1]} 34. Rb6+ {[%clk 0:00:20]} 34... Kf5
{[%clk 0:00:55.4]} 35. f3 {[%clk 0:00:19.1]} 35... Ra3+ {[%clk 0:00:50]} 36. Rc3
{[%clk 0:00:18.4]} 36... Ra1 {[%clk 0:00:50.6]} 37. Rb5 {[%clk 0:00:19]} 37...
Rc8 {[%clk 0:00:41.6]} 38. f4 {[%clk 0:00:19.1]} 38... f6 {[%clk 0:00:39.2]} 39.
fxe5 {[%clk 0:00:19.2]} 39... fxe5 {[%clk 0:00:40.1]} 40. c5 {[%clk 0:00:19.8]}
40... e4+ {[%clk 0:00:38.3]} 41. Kd4 {[%clk 0:00:17.4]} 41... Rd1+ {[%clk
0:00:36.4]} 42. Kc4 {[%clk 0:00:17.3]} 42... Rcd8 {[%clk 0:00:31.9]} 43. Rbb3
{[%clk 0:00:16.7]} 43... Ke5 {[%clk 0:00:25.4]} 44. c6 {[%clk 0:00:16]} 44...
Kd6 {[%clk 0:00:23.6]} 45. Kb5 {[%clk 0:00:15.5]} 45... Rb8+ {[%clk 0:00:22.9]}
46. Kc4 {[%clk 0:00:13.7]} 46... Rxb3 {[%clk 0:00:21.6]} 47. Kxb3 {[%clk
0:00:13.9]} 47... Kc7 {[%clk 0:00:14.6]} 48. Kb4 {[%clk 0:00:13.3]} 48... Rd5
{[%clk 0:00:11]} 49. Kb3 {[%clk 0:00:10.5]} 49... Rd6 {[%clk 0:00:09.6]} 50. Rc4
{[%clk 0:00:09.4]} 50... Rd3+ {[%clk 0:00:09.2]} 51. Rc3 {[%clk 0:00:09.7]}
51... Kb6 {[%clk 0:00:05.8]} 52. c7 {[%clk 0:00:08.2]} 52... Rxc3+ {[%clk
0:00:04.7]} 53. Kxc3 {[%clk 0:00:08.6]} 53... Kxc7 {[%clk 0:00:05.6]} 54. Kd4
{[%clk 0:00:09.1]} 54... Kd6 {[%clk 0:00:06.5]} 55. Kxe4 {[%clk 0:00:09.7]}
55... Ke6 {[%clk 0:00:07.4]} 56. Kf4 {[%clk 0:00:10.4]} 56... Kf6 {[%clk
0:00:07.6]} 57. Ke4 {[%clk 0:00:10.9]} 57... Ke6 {[%clk 0:00:08]} 58. Kf4 {[%clk
0:00:10.8]} 58... Kf6 {[%clk 0:00:08.7]} 59. Kf3 {[%clk 0:00:10.9]} 59... Kf5
{[%clk 0:00:08.9]} 60. Kf2 {[%clk 0:00:11.1]} 60... Kg4 {[%clk 0:00:09.3]} 61.
Kg2 {[%clk 0:00:11.3]} 61... g5 {[%clk 0:00:10.2]} 62. hxg5 {[%clk 0:00:11.5]}
62... Kxg5 {[%clk 0:00:11.1]} 63. Kh3 {[%clk 0:00:12.1]} 63... Kf5 {[%clk
0:00:10.7]} 64. Kh4 {[%clk 0:00:12.4]} 64... Kg6 {[%clk 0:00:11.1]} 65. g4
{[%clk 0:00:13]} 65... hxg4 {[%clk 0:00:10.3]} 66. Kxg4 {[%clk 0:00:13.6]}
1/2-1/2

[Event "*** SCC Grand Prix: Titled Tuesday Blitz"]
[Site "Chess.com"]
[Date "2020.06.23"]
[Round "10"]
[White "Gabrielian_Artur"]
[Black "Fusikk"]
[Result "1/2-1/2"]
[WhiteElo "2753"]
[BlackElo "2564"]
[TimeControl "180+1"]
[EndTime "11:59:06 PDT"]
[Termination "Game drawn by repetition"]

1. e4 {[%clk 0:03:00.9]} 1... e5 {[%clk 0:02:59]} 2. Nc3 {[%clk 0:03:00.6]} 2...
Nc6 {[%clk 0:02:58.6]} 3. g3 {[%clk 0:03:00.5]} 3... Bc5 {[%clk 0:02:56.2]} 4.
Bg2 {[%clk 0:03:00.4]} 4... d6 {[%clk 0:02:54.9]} 5. Nge2 {[%clk 0:02:59.9]}
5... Nf6 {[%clk 0:02:54.4]} 6. d3 {[%clk 0:02:58.7]} 6... O-O {[%clk 0:02:54.2]}
7. O-O {[%clk 0:02:57.8]} 7... h6 {[%clk 0:02:50.7]} 8. h3 {[%clk 0:02:57.5]}
8... Be6 {[%clk 0:02:50.3]} 9. Kh2 {[%clk 0:02:57.5]} 9... d5 {[%clk 0:02:49.5]}
10. f4 {[%clk 0:02:57.7]} 10... dxe4 {[%clk 0:02:41.9]} 11. fxe5 {[%clk
0:02:48.2]} 11... Nxe5 {[%clk 0:02:36.9]} 12. Nxe4 {[%clk 0:02:16.1]} 12... Nxe4
{[%clk 0:02:25.2]} 13. Bxe4 {[%clk 0:02:16]} 13... Nc6 {[%clk 0:01:57.2]} 14.
Nf4 {[%clk 0:02:13.6]} 14... Bd7 {[%clk 0:01:53.2]} 15. Qh5 {[%clk 0:02:09.1]}
15... Qg5 {[%clk 0:01:47.3]} 16. Qxg5 {[%clk 0:02:05.7]} 16... hxg5 {[%clk
0:01:48.2]} 17. Nd5 {[%clk 0:02:05.7]} 17... Nd4 {[%clk 0:01:16.7]} 18. Bxg5
{[%clk 0:02:03.4]} 18... c6 {[%clk 0:00:54.7]} 19. Ne7+ {[%clk 0:01:43.2]} 19...
Bxe7 {[%clk 0:00:52.7]} 20. Bxe7 {[%clk 0:01:43.3]} 20... Rfe8 {[%clk
0:00:53.6]} 21. Bc5 {[%clk 0:01:41.1]} 21... Nxc2 {[%clk 0:00:46.6]} 22. Rac1
{[%clk 0:01:40.5]} 22... Ne3 {[%clk 0:00:45.4]} 23. Bxe3 {[%clk 0:01:39.9]}
23... f5 {[%clk 0:00:45.4]} 24. Bd5+ {[%clk 0:00:40.8]} 24... cxd5 {[%clk
0:00:41]} 25. Rfe1 {[%clk 0:00:41]} 25... Bc6 {[%clk 0:00:38.9]} 26. Bd4 {[%clk
0:00:40.5]} 26... a6 {[%clk 0:00:34.6]} 27. Be5 {[%clk 0:00:25.9]} 27... d4
{[%clk 0:00:23.1]} 28. Bxd4 {[%clk 0:00:22.4]} 28... Rxe1 {[%clk 0:00:19.6]} 29.
Rxe1 {[%clk 0:00:22.1]} 29... Rd8 {[%clk 0:00:20.2]} 30. Bc3 {[%clk 0:00:19.6]}
30... Rxd3 {[%clk 0:00:18.5]} 31. h4 {[%clk 0:00:18.3]} 31... Kf7 {[%clk
0:00:17.9]} 32. a3 {[%clk 0:00:16.1]} 32... Be4 {[%clk 0:00:17.8]} 33. g4 {[%clk
0:00:15.2]} 33... Kg6 {[%clk 0:00:12.3]} 34. gxf5+ {[%clk 0:00:14.3]} 34... Bxf5
{[%clk 0:00:11.1]} 35. Rg1+ {[%clk 0:00:14.2]} 35... Kh6 {[%clk 0:00:10.3]} 36.
Bxg7+ {[%clk 0:00:13.4]} 36... Kh7 {[%clk 0:00:10.1]} 37. Bf6 {[%clk 0:00:11.4]}
37... Rh3+ {[%clk 0:00:09]} 38. Kg2 {[%clk 0:00:11.8]} 38... Rd3 {[%clk
0:00:08.3]} 39. Kf2 {[%clk 0:00:11.8]} 39... Be4 {[%clk 0:00:07.7]} 40. Bc3
{[%clk 0:00:11.2]} 40... Rf3+ {[%clk 0:00:07.2]} 41. Ke1 {[%clk 0:00:11.2]}
41... Rh3 {[%clk 0:00:07.1]} 42. Rg7+ {[%clk 0:00:10.4]} 42... Kh6 {[%clk
0:00:07]} 43. Re7 {[%clk 0:00:09.2]} 43... Rxh4 {[%clk 0:00:05.9]} 44. Kd2
{[%clk 0:00:09.6]} 44... Kg6 {[%clk 0:00:05.9]} 45. Ke3 {[%clk 0:00:09.9]} 45...
Bc6 {[%clk 0:00:06.4]} 46. Re5 {[%clk 0:00:07.5]} 46... Kf7 {[%clk 0:00:05.2]}
47. Rg5 {[%clk 0:00:06.9]} 47... Re4+ {[%clk 0:00:04.4]} 48. Kd3 {[%clk
0:00:07]} 48... Re6 {[%clk 0:00:04.4]} 49. Kd4 {[%clk 0:00:06.5]} 49... Ke7
{[%clk 0:00:04.7]} 50. Kc5 {[%clk 0:00:06.2]} 50... Kd7 {[%clk 0:00:04.4]} 51.
Rg7+ {[%clk 0:00:06.3]} 51... Re7 {[%clk 0:00:04.6]} 52. Rg6 {[%clk 0:00:05.8]}
52... Kc7 {[%clk 0:00:04.8]} 53. Ba5+ {[%clk 0:00:05.3]} 53... Kd7 {[%clk
0:00:04.8]} 54. Rd6+ {[%clk 0:00:04.6]} 54... Ke8 {[%clk 0:00:03.9]} 55. Rd8+
{[%clk 0:00:04.8]} 55... Kf7 {[%clk 0:00:04.2]} 56. Kb6 {[%clk 0:00:05.7]} 56...
Re5 {[%clk 0:00:04.3]} 57. Bc3 {[%clk 0:00:05]} 57... Rb5+ {[%clk 0:00:04.4]}
58. Kc7 {[%clk 0:00:05.4]} 58... Rb3 {[%clk 0:00:04.5]} 59. Rd4 {[%clk
0:00:05.1]} 59... Ke7 {[%clk 0:00:04.8]} 60. Rd2 {[%clk 0:00:04.8]} 60... Kf7
{[%clk 0:00:04.9]} 61. Re2 {[%clk 0:00:04.7]} 61... Rb5 {[%clk 0:00:04]} 62.
Rf2+ {[%clk 0:00:04.9]} 62... Ke6 {[%clk 0:00:03.6]} 63. Rf6+ {[%clk 0:00:04.8]}
63... Kd5 {[%clk 0:00:02.9]} 64. Rh6 {[%clk 0:00:05.7]} 64... Kc4 {[%clk
0:00:03.1]} 65. Rh3 {[%clk 0:00:05]} 65... Kb3 {[%clk 0:00:03.4]} 66. Bd4+
{[%clk 0:00:05.5]} 66... Ka2 {[%clk 0:00:03.8]} 67. a4 {[%clk 0:00:06]} 67...
Rb3 {[%clk 0:00:03.8]} 68. Rh2 {[%clk 0:00:05.7]} 68... Bxa4 {[%clk 0:00:02.3]}
69. Bc3 {[%clk 0:00:06.1]} 69... Bc6 {[%clk 0:00:02.7]} 70. Rh4 {[%clk 0:00:06]}
70... Rb5 {[%clk 0:00:03.1]} 71. Ra4+ {[%clk 0:00:05.5]} 71... Kb3 {[%clk
0:00:03.6]} 72. Rh4 {[%clk 0:00:05.6]} 72... Rc5 {[%clk 0:00:03.7]} 73. Rb4+
{[%clk 0:00:05.5]} 73... Kc2 {[%clk 0:00:03.5]} 74. Kb6 {[%clk 0:00:06.4]} 74...
Rb5+ {[%clk 0:00:03.5]} 75. Rxb5 {[%clk 0:00:06.7]} 75... axb5 {[%clk
0:00:04.4]} 76. Kc5 {[%clk 0:00:07.1]} 76... Kb3 {[%clk 0:00:04.7]} 77. Kb6
{[%clk 0:00:07.5]} 77... Kc2 {[%clk 0:00:04.3]} 78. Bg7 {[%clk 0:00:08.4]} 78...
Kb3 {[%clk 0:00:04.6]} 79. Bh8 {[%clk 0:00:09.3]} 79... Kc2 {[%clk 0:00:05.2]}
80. Bg7 {[%clk 0:00:10.2]} 80... Kb3 {[%clk 0:00:06.1]} 81. Bh8 {[%clk
0:00:11.1]} 81... Kc2 {[%clk 0:00:07]} 82. Bg7 {[%clk 0:00:12]} 1/2-1/2

[Event "*** SCC Grand Prix: Titled Tuesday Blitz"]
[Site "Chess.com"]
[Date "2020.06.23"]
[Round "10"]
[White "Vuk2000"]
[Black "cholzan"]
[Result "1-0"]
[WhiteElo "2632"]
[BlackElo "2381"]
[TimeControl "180+1"]
[EndTime "11:59:11 PDT"]
[Termination "Vuk2000 won by checkmate"]

1. e4 {[%clk 0:03:00.6]} 1... d6 {[%clk 0:03:00.3]} 2. d4 {[%clk 0:03:00.6]}
2... Nf6 {[%clk 0:02:59.8]} 3. Nc3 {[%clk 0:03:00.4]} 3... e5 {[%clk 0:03:00]}
4. Nf3 {[%clk 0:02:59.4]} 4... Nbd7 {[%clk 0:02:59.3]} 5. Bc4 {[%clk 0:02:58.1]}
5... Be7 {[%clk 0:02:59.4]} 6. O-O {[%clk 0:02:58.3]} 6... O-O {[%clk
0:02:59.3]} 7. a4 {[%clk 0:02:57.4]} 7... c6 {[%clk 0:02:58.3]} 8. Re1 {[%clk
0:02:57.4]} 8... exd4 {[%clk 0:02:54.8]} 9. Nxd4 {[%clk 0:02:57.2]} 9... Nc5
{[%clk 0:02:55.2]} 10. f3 {[%clk 0:02:54.3]} 10... Re8 {[%clk 0:02:52.3]} 11.
Be3 {[%clk 0:02:54.1]} 11... Bf8 {[%clk 0:02:49.5]} 12. Qd2 {[%clk 0:02:54]}
12... Ne6 {[%clk 0:02:49]} 13. Rad1 {[%clk 0:02:48.9]} 13... Nxd4 {[%clk
0:02:47]} 14. Bxd4 {[%clk 0:02:48.2]} 14... Be6 {[%clk 0:02:34]} 15. Bd3 {[%clk
0:02:21.5]} 15... Nd7 {[%clk 0:02:29.1]} 16. f4 {[%clk 0:02:17.4]} 16... Nc5
{[%clk 0:02:11.9]} 17. f5 {[%clk 0:01:57.4]} 17... Nxd3 {[%clk 0:02:05.8]} 18.
Qxd3 {[%clk 0:01:57.2]} 18... Bd7 {[%clk 0:02:03.6]} 19. Qg3 {[%clk 0:01:53.2]}
19... f6 {[%clk 0:01:47.5]} 20. Be3 {[%clk 0:01:49.8]} 20... Qa5 {[%clk
0:01:41.4]} 21. Bf4 {[%clk 0:01:37.8]} 21... d5 {[%clk 0:01:32.9]} 22. exd5
{[%clk 0:01:32.4]} 22... cxd5 {[%clk 0:01:31.8]} 23. Rxd5 {[%clk 0:01:31.5]}
23... Qb6+ {[%clk 0:01:28.8]} 24. Kh1 {[%clk 0:00:50.6]} 24... Bc6 {[%clk
0:01:23.5]} 25. Rdd1 {[%clk 0:00:42.3]} 25... Qxb2 {[%clk 0:01:21]} 26. Re6
{[%clk 0:00:36]} 26... Qxc2 {[%clk 0:01:17.2]} 27. Rc1 {[%clk 0:00:35.1]} 27...
Qxf5 {[%clk 0:01:16.5]} 28. Rxe8 {[%clk 0:00:27.5]} 28... Rxe8 {[%clk
0:01:17.4]} 29. Nb5 {[%clk 0:00:21.3]} 29... Re2 {[%clk 0:01:13.1]} 30. Nd4
{[%clk 0:00:12.7]} 30... Rxg2 {[%clk 0:00:51.5]} 31. Rxc6 {[%clk 0:00:05.2]}
31... Rxg3 {[%clk 0:00:48.3]} 32. Nxf5 {[%clk 0:00:04.9]} 32... Rf3 {[%clk
0:00:48.3]} 33. Rc4 {[%clk 0:00:04.3]} 33... g5 {[%clk 0:00:48.3]} 34. Bd6
{[%clk 0:00:04.3]} 34... Bxd6 {[%clk 0:00:41.9]} 35. Nxd6 {[%clk 0:00:05.2]}
35... Rd3 {[%clk 0:00:41.4]} 36. Nxb7 {[%clk 0:00:05.3]} 36... f5 {[%clk
0:00:41.2]} 37. Nc5 {[%clk 0:00:05.8]} 37... Rd2 {[%clk 0:00:39.4]} 38. Ne6
{[%clk 0:00:05.5]} 38... h6 {[%clk 0:00:39.2]} 39. Rd4 {[%clk 0:00:04.5]} 39...
Re2 {[%clk 0:00:37.4]} 40. Nc5 {[%clk 0:00:04.8]} 40... f4 {[%clk 0:00:35.7]}
41. Kg1 {[%clk 0:00:04.8]} 41... Kf7 {[%clk 0:00:33.5]} 42. Rd6 {[%clk
0:00:04.9]} 42... Rc2 {[%clk 0:00:31.5]} 43. Nd3 {[%clk 0:00:05]} 43... Kg7
{[%clk 0:00:27.8]} 44. Ra6 {[%clk 0:00:04.2]} 44... Rd2 {[%clk 0:00:24.9]} 45.
Ne5 {[%clk 0:00:04.4]} 45... Re2 {[%clk 0:00:21.1]} 46. Nf3 {[%clk 0:00:03.9]}
46... g4 {[%clk 0:00:20.3]} 47. Nd4 {[%clk 0:00:04]} 47... Rd2 {[%clk
0:00:19.7]} 48. Ne6+ {[%clk 0:00:04.3]} 48... Kf6 {[%clk 0:00:18.2]} 49. Nxf4+
{[%clk 0:00:04.9]} 49... Kf5 {[%clk 0:00:17.8]} 50. Nh5 {[%clk 0:00:04.7]} 50...
Rd1+ {[%clk 0:00:14.7]} 51. Kg2 {[%clk 0:00:04.8]} 51... Rd2+ {[%clk 0:00:14.8]}
52. Kg1 {[%clk 0:00:04.7]} 52... Rd1+ {[%clk 0:00:14.8]} 53. Kf2 {[%clk
0:00:05.3]} 53... Rd2+ {[%clk 0:00:14.6]} 54. Kg3 {[%clk 0:00:02.9]} 54... Rd3+
{[%clk 0:00:14.6]} 55. Kf2 {[%clk 0:00:03.5]} 55... Rd2+ {[%clk 0:00:14.7]} 56.
Ke3 {[%clk 0:00:04.2]} 56... Rxh2 {[%clk 0:00:14.4]} 57. Ra5+ {[%clk 0:00:04.8]}
57... Kg6 {[%clk 0:00:13.8]} 58. Nf4+ {[%clk 0:00:05]} 58... Kf6 {[%clk
0:00:13.8]} 59. Rxa7 {[%clk 0:00:05.4]} 59... g3 {[%clk 0:00:13.3]} 60. Kf3
{[%clk 0:00:05.5]} 60... Ra2 {[%clk 0:00:12.2]} 61. Kxg3 {[%clk 0:00:05.4]}
61... Kg5 {[%clk 0:00:12.2]} 62. Ra5+ {[%clk 0:00:05.3]} 62... Kf6 {[%clk
0:00:12.3]} 63. Kg4 {[%clk 0:00:06]} 63... Rb2 {[%clk 0:00:11.2]} 64. Ra6+
{[%clk 0:00:05.9]} 64... Kf7 {[%clk 0:00:10.6]} 65. Kf5 {[%clk 0:00:05.1]} 65...
Rb4 {[%clk 0:00:10.5]} 66. a5 {[%clk 0:00:04.8]} 66... h5 {[%clk 0:00:09.6]} 67.
Ra7+ {[%clk 0:00:04.5]} 67... Kf8 {[%clk 0:00:09.1]} 68. Ne6+ {[%clk 0:00:03.5]}
68... Ke8 {[%clk 0:00:07.7]} 69. Kf6 {[%clk 0:00:03.7]} 69... Rb8 {[%clk
0:00:06.7]} 70. Re7# {[%clk 0:00:03.9]} 1-0